lending/lending_fUSD_20240411
["ID","MTS","AMOUNT","RATE_DAILY","PERIOD"]
[322173465,1712863859393,-500.0,0.00027671,2]
[322173466,1712863859402,-3313.18,0.00027671,2]
[322173467,1712863859412,-3298.66,0.00027671,2]
[322173468,1712863859422,-2090.96,0.00027671,2]
[322173469,1712863859431,-3316.05,0.00027671,2]
[322173470,1712863859440,-500.0,0.00027671,2]
[322173471,1712863859450,-2581.64,0.00027671,2]
[322173472,1712863859459,-500.0,0.00027671,2]
[322173473,1712863859468,-500.0,0.00027671,2]
[322173474,1712863859478,-500.0,0.00027671,2]
[322173475,1712863859487,-2873.47,0.00027671,2]
[322173476,1712863859497,-500.0,0.00027671,2]
[322173477,1712863859506,-1789.61,0.00027671,2]
[322173478,1712863859515,-2480.74,0.00027671,2]
[322173479,1712863859525,-1598.84,0.00027671,2]
[322173480,1712863859534,-500.0,0.00027671,2]
[322173481,1712863859544,-14422.58,0.00027671,2]
[322173482,1712863859555,-5953.17,0.00027671,2]
[322173483,1712863859564,-456.66068442,0.00027671,2]
[322173484,1712863859573,-500.0,0.00027671,2]
[322173485,1712863859585,-737.57,0.00027671,2]
[322173486,1712863859595,-1652.71,0.00027671,2]
[322173487,1712863859604,-500.0,0.00027671,2]
[322173488,1712863859613,-7074.56,0.00027671,2]
[322173489,1712863859623,-500.0,0.00027671,2]
[322173490,1712863859632,-1619.98,0.00027671,2]
[322173491,1712863859641,-500.0,0.00027671,2]
[322173492,1712863859651,-2584.49,0.00027671,2]
[322173493,1712863859661,-500.0,0.00027671,2]
[322173494,1712863859670,-2631.69,0.00027671,2]
[322173495,1712863859679,-10781.75,0.00027671,2]
[322173496,1712863859689,-382.16187162,0.00027671,2]
[322173497,1712863859698,-2141.81,0.00027671,2]
[322173498,1712863859707,-2228.38,0.00027671,2]
[322173499,1712863859716,-1182.41,0.00027671,2]
[322173500,1712863859725,-547.08,0.00027671,2]
[322173501,1712863859735,-1593.8,0.00027671,2]
[322173502,1712863859744,-1306.7,0.00027671,2]
[322173503,1712863859753,-2162.99,0.00027671,2]
[322173504,1712863859763,-500.0,0.00027671,2]
[322173505,1712863859772,-1388.34,0.00027671,2]
[322173506,1712863859781,-500.0,0.00027671,2]
[322173507,1712863859790,-4975.16,0.00027671,2]
[322173508,1712863859800,-500.0,0.00027671,2]
[322173509,1712863859810,-500.0,0.00027671,2]
[322173510,1712863859820,-500.0,0.00027671,2]
[322173511,1712863859830,-560.04829344,0.00027671,2]
[322173512,1712863859839,-3398.13,0.00027671,2]
[322173513,1712863859850,-4052.06,0.00027671,2]
[322173514,1712863859861,-500.0,0.00027671,2]
[322173515,1712863859871,-3587.71,0.00027671,2]
[322173516,1712863859880,-500.0,0.00027671,2]
[322173517,1712863859889,-538.59,0.00027671,2]
[322173518,1712863859898,-500.0,0.00027671,2]
[322173519,1712863859908,-2718.79,0.00027671,2]
[322173520,1712863859919,-500.0,0.00027671,2]
[322173521,1712863859928,-500.0,0.00027671,2]
[322173522,1712863859937,-643.87,0.00027671,2]
[322173523,1712863859947,-1944.58,0.00027671,2]
[322173524,1712863859957,-3239.59,0.00027671,2]
[322173525,1712863859967,-640.82,0.00027671,2]
[322173526,1712863859976,-741.23,0.00027671,2]
[322173527,1712863859985,-500.0,0.00027671,2]
[322173528,1712863859995,-2450.14,0.00027671,2]
[322173529,1712863860004,-1379.62,0.00027671,2]
[322173530,1712863860014,-500.0,0.00027671,2]
[322173531,1712863860024,-1028.85,0.00027671,2]
[322173532,1712863860033,-5944.87,0.00027671,2]
[322173533,1712863860043,-2132.08,0.00027671,2]
[322173534,1712863860052,-1280.64,0.00027671,2]
[322173535,1712863860062,-1028.51,0.00027671,2]
[322173536,1712863860071,-4562.38,0.00027671,2]
[322173537,1712863860080,-7074.77,0.00027671,2]
[322173538,1712863860089,-6825.13,0.00027671,2]
[322173539,1712863860098,-500.0,0.00027671,2]
[322173540,1712863860107,-3134.26,0.00027671,2]
[322173541,1712863860116,-2368.31,0.00027671,2]
[322173542,1712863860125,-15352.07,0.00027671,2]
[322173543,1712863860133,-1225.72,0.00027671,2]
[322173544,1712863860142,-500.0,0.00027671,2]
[322173545,1712863860151,-1114.66,0.00027671,2]
[322173546,1712863860160,-1085.38,0.00027671,2]
[322173547,1712863860170,-757.5,0.00027671,2]
[322173548,1712863860179,-500.0,0.00027671,2]
[322173549,1712863860188,-1240.17,0.00027671,2]
[322173550,1712863860197,-151.0,0.00027671,7]
[322173551,1712863860206,-3289.28,0.00027671,2]
[322173552,1712863860215,-3479.62,0.00027671,2]
[322173553,1712863860224,-4609.28,0.00027671,2]
[322173554,1712863860233,-586.73,0.00027671,2]
[322173555,1712863860243,-776.88,0.00027671,2]
[322173556,1712863860253,-1626.2,0.00027671,2]
[322173557,1712863860263,-500.0,0.00027671,2]
[322173558,1712863860273,-20099.39,0.00027671,2]
[322173559,1712863860282,-1308.93,0.00027671,2]
[322173560,1712863860291,-851.06,0.00027671,2]
[322173561,1712863860300,-25741.65,0.00027671,2]
[322173562,1712863860311,-3018.25,0.00027671,2]
[322173563,1712863860320,-2048.9,0.00027671,2]
[322173564,1712863860329,-3588.33,0.00027671,2]
[322173565,1712863860339,-278.10630877,0.00027671,2]
[322173566,1712863860348,-3107.63,0.00027671,2]
[322173567,1712863860357,-1051.67,0.00027671,2]
[322173568,1712863860366,-500.0,0.00027671,2]
[322173569,1712863860375,-500.0,0.00027671,2]
[322173570,1712863860384,-2374.36,0.00027671,2]
[322173571,1712863860393,-1592.05,0.00027671,2]
[322173572,1712863860402,-2534.14,0.00027671,2]
[322173573,1712863860411,-19452.39,0.00027671,2]
[322173574,1712863860420,-505.91,0.00027671,2]
[322173575,1712863860430,-500.0,0.00027671,2]
[322173576,1712863860439,-527.81,0.00027671,2]
[322173577,1712863860448,-3020.3,0.00027671,2]
[322173578,1712863860457,-7446.86,0.00027671,2]
[322173579,1712863860466,-1495.54,0.00027671,2]
[322173580,1712863860475,-500.0,0.00027671,2]
[322173581,1712863860485,-2700.11,0.00027671,2]
[322173582,1712863860494,-614.49,0.00027671,2]
[322173583,1712863860503,-1142.49,0.00027671,2]
[322173584,1712863860513,-500.0,0.00027671,2]
[322173585,1712863860522,-500.0,0.00027671,2]
[322173586,1712863860532,-8843.49,0.00027671,2]
[322173587,1712863860541,-682.27,0.00027671,2]
[322173588,1712863860551,-2651.73,0.00027671,2]
[322173589,1712863860563,-18815.4,0.00027671,2]
[322173590,1712863860573,-54176.01,0.00027671,2]
[322173591,1712863860585,-3784.62,0.00027671,2]
[322173592,1712863860598,-1593.95,0.00027671,2]
[322173593,1712863860609,-500.0,0.00027671,2]
[322173594,1712863860621,-8906.82,0.00027671,2]
[322173595,1712863860631,-4300.73,0.00027671,2]
[322173596,1712863860642,-631.27,0.00027671,2]
[322173597,1712863860654,-596.57,0.00027671,2]
[322173598,1712863860665,-500.0,0.00027671,2]
[322173599,1712863860678,-500.0,0.00027671,2]
[322173600,1712863860688,-4603.8,0.00027671,2]
[322173601,1712863860698,-2116.62,0.00027671,2]
[322173602,1712863860708,-4305.06,0.00027671,2]
[322173603,1712863860717,-821.16,0.00027671,2]
[322173604,1712863860729,-6457.93,0.00027671,2]
[322173605,1712863860740,-500.0,0.00027671,2]
[322173606,1712863860751,-1483.72,0.00027671,2]
[322173607,1712863860760,-500.0,0.00027671,2]
[322173608,1712863860769,-500.0,0.00027671,2]
[322173609,1712863860781,-690.55,0.00027671,2]
[322173610,1712863860791,-500.0,0.00027671,2]
[322173611,1712863860803,-812.85,0.00027671,2]
[322173612,1712863860813,-5042.1,0.00027671,2]
[322173613,1712863860822,-2960.07,0.00027671,2]
[322173614,1712863860831,-500.0,0.00027671,2]
[322173615,1712863860840,-500.0,0.00027671,2]
[322173616,1712863860850,-4454.49,0.00027671,2]
[322173617,1712863860860,-5647.2,0.00027671,2]
[322173618,1712863860870,-2440.94,0.00027671,2]
[322173619,1712863860879,-500.0,0.00027671,2]
[322173620,1712863860888,-500.0,0.00027671,2]
[322173621,1712863860898,-1308.46,0.00027671,2]
[322173622,1712863860907,-748.44,0.00027671,2]
[322173623,1712863860917,-500.0,0.00027671,2]
[322173624,1712863860926,-849.93,0.00027671,2]
[322173625,1712863860936,-9726.64,0.00027671,2]
[322173626,1712863860946,-500.0,0.00027671,2]
[322173627,1712863860958,-3590.29,0.00027671,2]
[322173628,1712863860968,-3226.22,0.00027671,2]
[322173629,1712863860977,-501.06,0.00027671,2]
[322173630,1712863860987,-500.0,0.00027671,2]
[322173631,1712863860998,-769.9,0.00027671,2]
[322173632,1712863861007,-7238.93,0.00027671,2]
[322173633,1712863861017,-837.7,0.00027671,2]
[322173634,1712863861026,-500.0,0.00027671,2]
[322173635,1712863861035,-866.14,0.00027671,2]
[322173636,1712863861044,-500.0,0.00027671,2]
[322173637,1712863861054,-500.0,0.00027671,2]
[322173638,1712863861065,-2879.46,0.00027671,2]
[322173639,1712863861075,-3278.69,0.00027671,2]
[322173640,1712863861084,-1814.55,0.00027671,2]
[322173641,1712863861093,-500.0,0.00027671,2]
[322173642,1712863861102,-34421.11,0.00027671,2]
[322173643,1712863861112,-1644.22,0.00027671,2]
[322173644,1712863861122,-500.0,0.00027671,2]
[322173645,1712863861131,-500.0,0.00027671,2]
[322173646,1712863861141,-500.0,0.00027671,2]
[322173647,1712863861150,-689.01,0.00027671,2]
[322173648,1712863861160,-795.68,0.00027671,2]
[322173649,1712863861169,-984.54,0.00027671,2]
[322173650,1712863861178,-3327.03,0.00027671,2]
[322173651,1712863861187,-500.0,0.00027671,2]
[322173652,1712863861195,-500.0,0.00027671,2]
[322173653,1712863861205,-1110.72,0.00027671,2]
[322173654,1712863861215,-6971.64,0.00027671,2]
[322173655,1712863861224,-4548.52,0.00027671,2]
[322173656,1712863861233,-1689.02,0.00027671,2]
[322173657,1712863861242,-4131.95,0.00027671,2]
[322173658,1712863861252,-500.0,0.00027671,2]
[322173659,1712863861261,-1399.8,0.00027671,2]
[322173660,1712863861271,-588.2,0.00027671,2]
[322173661,1712863861280,-500.0,0.00027671,2]
[322173662,1712863861289,-2132.57,0.00027671,2]
[322173663,1712863861298,-2460.93,0.00027671,2]
[322173664,1712863861308,-500.0,0.00027671,2]
[322173665,1712863861318,-3570.47,0.00027671,2]
[322173666,1712863861327,-940.49,0.00027671,2]
[322173667,1712863861336,-1384.5,0.00027671,2]
[322173668,1712863861345,-523.38,0.00027671,2]
[322173669,1712863861354,-5204.76,0.00027671,2]
[322173670,1712863861363,-7694.44,0.00027671,2]
[322173671,1712863861372,-500.0,0.00027671,2]
[322173672,1712863861381,-500.0,0.00027671,2]
[322173673,1712863861390,-12079.87,0.00027671,2]
[322173674,1712863861399,-6684.72,0.00027671,2]
[322173675,1712863861408,-526.39,0.00027671,2]
[322173676,1712863861417,-5671.76,0.00027671,2]
[322173677,1712863861426,-2162.52,0.00027671,2]
[322173678,1712863861435,-500.0,0.00027671,2]
[322173679,1712863861444,-500.0,0.00027671,2]
[322173680,1712863861454,-2445.18,0.00027671,2]
[322173681,1712863861463,-3880.76,0.00027671,2]
[322173682,1712863861472,-500.0,0.00027671,2]
[322173683,1712863861482,-3432.24,0.00027671,2]
[322173684,1712863861491,-500.0,0.00027671,2]
[322173685,1712863861501,-730.94,0.00027671,2]
[322173686,1712863861510,-676.92,0.00027671,2]
[322173687,1712863861519,-500.0,0.00027671,2]
[322173688,1712863861712,-534.08,0.00027671,2]
[322173689,1712863861722,-2554.06,0.00027671,2]
[322173690,1712863861731,-500.0,0.00027671,2]
[322173691,1712863861740,-2590.36,0.00027671,2]
[322173692,1712863861750,-1131.02,0.00027671,2]
[322173693,1712863861759,-1707.21,0.00027671,2]
[322173694,1712863861769,-2283.61,0.00027671,2]
[322173695,1712863861778,-7140.03,0.00027671,2]
[322173696,1712863861787,-615.11,0.00027671,2]
[322173697,1712863861796,-500.0,0.00027671,2]
[322173698,1712863861807,-731.31,0.00027671,2]
[322173699,1712863861817,-500.0,0.00027671,2]
[322173700,1712863861827,-5613.0,0.00027671,2]
[322173701,1712863861837,-500.0,0.00027671,2]
[322173702,1712863861846,-1489.13,0.00027671,2]
[322173703,1712863861856,-500.0,0.00027671,2]
[322173704,1712863861865,-500.0,0.00027671,2]
[322173705,1712863861875,-500.0,0.00027671,2]
[322173706,1712863861884,-585.96,0.00027671,2]
[322173707,1712863861894,-500.0,0.00027671,2]
[322173708,1712863861903,-11078.41,0.00027671,2]
[322173709,1712863861912,-500.0,0.00027671,2]
[322173710,1712863861922,-2508.39,0.00027671,2]
[322173711,1712863861931,-2129.83,0.00027671,2]
[322173712,1712863861940,-1856.58,0.00027671,2]
[322173713,1712863861949,-500.0,0.00027671,2]
[322173714,1712863861959,-1073.6,0.00027671,2]
[322173715,1712863861968,-4134.48,0.00027671,2]
[322173716,1712863861979,-554.68,0.00027671,2]
[322173717,1712863861989,-4212.13,0.00027671,2]
[322173718,1712863861998,-3469.4,0.00027671,2]
[322173719,1712863862007,-500.0,0.00027671,2]
[322173720,1712863862017,-563.5,0.00027671,2]
[322173721,1712863862026,-8111.23,0.00027671,2]
[322173722,1712863862035,-644.22,0.00027671,2]
[322173723,1712863862044,-500.0,0.00027671,2]
[322173724,1712863862055,-526.02,0.00027671,2]
[322173725,1712863862066,-500.0,0.00027671,2]
[322173726,1712863862076,-500.0,0.00027671,2]
[322173727,1712863862085,-609.54,0.00027671,2]
[322173728,1712863862094,-634.36069101,0.00027671,2]
[322173729,1712863862104,-330.73,0.000277,2]
[322173730,1712863862113,-6213.55879472,0.00027747,2]
[322173731,1712863862122,-4610.41930142,0.00027769,2]
[322173732,1712863862131,-3527.4826107,0.00027769,2]
[322173733,1712863862140,-150.0,0.000278,2]
[322173734,1712863862149,-153.90892363,0.00027811,2]
[322173735,1712863862159,-1182.71,0.00027944,2]
[322173736,1712863862168,-1182.71,0.00027944,2]
[322173737,1712863862177,-1182.71,0.00027944,2]
[322173738,1712863862185,-500.0,0.00027945,2]
[322173739,1712863862194,-192.44736294,0.00027945,2]
[322173740,1712863862203,-500.0,0.00027945,2]
[322173741,1712863862213,-500.0,0.00027945,2]
[322173742,1712863862222,-500.0,0.00027945,2]
[322173743,1712863862231,-458.50586499,0.00027945,2]
[322173744,1712863862241,-500.0,0.00027945,2]
[322173745,1712863862250,-500.0,0.00027945,2]
[322173746,1712863862260,-558.78,0.00027945,2]
[322173747,1712863862270,-500.0,0.00027945,2]
[322173748,1712863862280,-500.0,0.00027945,2]
[322173749,1712863862292,-781.35,0.00027945,2]
[322173750,1712863862302,-500.0,0.00027945,2]
[322173751,1712863862316,-500.0,0.00027945,2]
[322173752,1712863862326,-577.97,0.00027945,2]
[322173753,1712863862336,-500.0,0.00027945,2]
[322173754,1712863862347,-500.0,0.00027945,2]
[322173755,1712863862359,-508.83,0.00027945,2]
[322173756,1712863862368,-500.0,0.00027945,2]
[322173757,1712863862377,-616.34,0.00027945,2]
[322173758,1712863862386,-500.0,0.00027945,2]
[322173759,1712863862396,-500.0,0.00027945,2]
[322173760,1712863862406,-500.0,0.00027945,2]
[322173761,1712863862416,-500.0,0.00027945,2]
[322173762,1712863862427,-500.0,0.00027945,2]
[322173763,1712863862438,-500.0,0.00027945,2]
[322173764,1712863862447,-351.87124883,0.00027945,2]
[322173765,1712863862460,-500.0,0.00027945,2]
[322173766,1712863862470,-500.0,0.00027945,2]
[322173767,1712863862480,-500.0,0.00027945,2]
[322173768,1712863862489,-500.0,0.00027945,2]
[322173769,1712863862498,-500.0,0.00027945,2]
[322173770,1712863862507,-500.0,0.00027945,2]
[322173771,1712863862516,-617.50273487,0.00027945,2]
[322173772,1712863862525,-500.0,0.00027945,2]
[322173773,1712863862534,-500.0,0.00027945,2]
[322173774,1712863862544,-979.68,0.00027945,2]
[322173775,1712863862553,-678.48,0.00027945,2]
[322173776,1712863862566,-500.0,0.00027945,2]
[322173777,1712863862576,-500.0,0.00027945,2]
[322173778,1712863862586,-500.0,0.00027945,2]
[322173779,1712863862598,-500.0,0.00027945,2]
[322173780,1712863862608,-500.0,0.00027945,2]
[322173781,1712863862617,-500.0,0.00027945,2]
[322173782,1712863862626,-500.0,0.00027945,2]
[322173783,1712863862635,-500.0,0.00027945,2]
[322173784,1712863862644,-500.0,0.00027945,2]
[322173785,1712863862653,-500.0,0.00027945,2]
[322173786,1712863862662,-539.25,0.00027945,2]
[322173787,1712863862671,-956.96,0.00027945,2]
[322173788,1712863862681,-730.66,0.00027945,2]
[322173789,1712863862691,-500.0,0.00027945,2]
[322173790,1712863862700,-520.74,0.00027945,2]
[322173791,1712863862709,-500.0,0.00027945,2]
[322173792,1712863862718,-500.0,0.00027945,2]
[322173793,1712863862727,-500.0,0.00027945,2]
[322173794,1712863862737,-500.0,0.00027945,2]
[322173795,1712863862747,-1271.89,0.00027945,2]
[322173796,1712863862756,-582.63,0.00027945,2]
[322173797,1712863862766,-500.0,0.00027945,2]
[322173798,1712863862776,-661.97,0.00027945,2]
[322173799,1712863862786,-500.0,0.00027945,2]
[322173800,1712863862796,-500.0,0.00027945,2]
[322173801,1712863862806,-500.0,0.00027945,2]
[322173802,1712863862819,-500.0,0.00027945,2]
[322173803,1712863862829,-500.0,0.00027945,2]
[322173804,1712863862839,-500.0,0.00027945,2]
[322173805,1712863862849,-500.0,0.00027945,2]
[322173806,1712863862859,-517.07796219,0.00027945,2]
[322173807,1712863862870,-598.1,0.00027945,2]
[322173808,1712863862880,-500.0,0.00027945,2]
[322173809,1712863862891,-500.0,0.00027945,2]
[322173810,1712863862900,-500.0,0.00027945,2]
[322173811,1712863862909,-606.98080009,0.00027945,2]
[322173812,1712863862918,-500.0,0.00027945,2]
[322173813,1712863862927,-500.0,0.00027945,2]
[322173814,1712863862936,-500.0,0.00027945,2]
[322173815,1712863862946,-500.0,0.00027945,2]
[322173816,1712863862955,-500.0,0.00027945,2]
[322173817,1712863862966,-735.6,0.00027945,2]
[322173818,1712863862977,-500.0,0.00027945,2]
[322173819,1712863862989,-500.0,0.00027945,2]
[322173820,1712863863000,-500.0,0.00027945,2]
[322173821,1712863863011,-724.36,0.00027945,2]
[322173822,1712863863022,-500.0,0.00027945,2]
[322173823,1712863863040,-500.0,0.00027945,2]
[322173824,1712863863055,-500.0,0.00027945,2]
[322173825,1712863863069,-500.0,0.00027945,2]
[322173826,1712863863079,-500.0,0.00027945,2]
[322173827,1712863863089,-500.0,0.00027945,2]
[322173828,1712863863099,-500.0,0.00027945,2]
[322173829,1712863863110,-500.0,0.00027945,2]
[322173830,1712863863120,-662.41,0.00027945,2]
[322173831,1712863863129,-500.0,0.00027945,2]
[322173832,1712863863139,-500.0,0.00027945,2]
[322173833,1712863863148,-500.0,0.00027945,2]
[322173834,1712863863158,-500.0,0.00027945,2]
[322173835,1712863863168,-532.79855509,0.00027945,2]
[322173836,1712863863178,-500.0,0.00027945,2]
[322173837,1712863863187,-500.0,0.00027945,2]
[322173838,1712863863197,-500.0,0.00027945,2]
[322173839,1712863863207,-500.0,0.00027945,2]
[322173840,1712863863217,-645.77,0.00027945,2]
[322173841,1712863863227,-500.0,0.00027945,2]
[322173842,1712863863237,-630.18,0.00027945,2]
[322173843,1712863863247,-500.0,0.00027945,2]
[322173844,1712863863257,-500.0,0.00027945,2]
[322173845,1712863863267,-538.93,0.00027945,2]
[322173846,1712863863276,-500.0,0.00027945,2]
[322173847,1712863863286,-1170.3,0.00027945,2]
[322173848,1712863863295,-500.0,0.00027945,2]
[322173849,1712863863304,-500.0,0.00027945,2]
[322173850,1712863863317,-500.0,0.00027945,2]
[322173851,1712863863327,-514.57858315,0.00027945,2]
[322173852,1712863863336,-500.0,0.00027945,2]
[322173853,1712863863346,-500.0,0.00027945,2]
[322173854,1712863863356,-500.0,0.00027945,2]
[322173855,1712863863366,-622.48,0.00027945,2]
[322173856,1712863863375,-500.0,0.00027945,2]
[322173857,1712863863384,-500.0,0.00027945,2]
[322173858,1712863863394,-500.0,0.00027945,2]
[322173859,1712863863403,-881.06,0.00027945,2]
[322173860,1712863863413,-776.07,0.00027945,2]
[322173861,1712863863422,-500.0,0.00027945,2]
[322173862,1712863863432,-500.0,0.00027945,2]
[322173863,1712863863442,-500.0,0.00027945,2]
[322173864,1712863863452,-500.0,0.00027945,2]
[322173865,1712863863462,-500.0,0.00027945,2]
[322173866,1712863863474,-500.0,0.00027945,2]
[322173867,1712863863483,-500.0,0.00027945,2]
[322173868,1712863863492,-500.0,0.00027945,2]
[322173869,1712863863502,-619.23,0.00027945,2]
[322173870,1712863863511,-609.85,0.00027945,2]
[322173871,1712863863520,-500.0,0.00027945,2]
[322173872,1712863863530,-979.3,0.00027945,2]
[322173873,1712863863539,-300.0,0.00027945,2]
[322173874,1712863863548,-500.0,0.00027945,2]
[322173875,1712863863557,-500.0,0.00027945,2]
[322173876,1712863863572,-848.99,0.00027945,2]
[322173877,1712863863584,-500.0,0.00027945,2]
[322173878,1712863863595,-500.0,0.00027945,2]
[322173879,1712863863605,-500.0,0.00027945,2]
[322173880,1712863863616,-556.26,0.00027945,2]
[322173881,1712863863626,-561.42,0.00027945,2]
[322173882,1712863863636,-500.0,0.00027945,2]
[322173883,1712863863646,-750.5,0.00027945,2]
[322173884,1712863863655,-795.39,0.00027945,2]
[322173885,1712863863665,-500.0,0.00027945,2]
[322173886,1712863863676,-500.0,0.00027945,2]
[322173887,1712863863686,-154.01,0.00027945,2]
[322173888,1712863863695,-500.0,0.00027945,2]
[322173889,1712863863705,-500.0,0.00027945,2]
[322173890,1712863863714,-821.11,0.00027945,2]
[322173891,1712863863723,-500.0,0.00027945,2]
[322173892,1712863863732,-520.41,0.00027945,2]
[322173893,1712863863741,-500.0,0.00027945,2]
[322173894,1712863863750,-500.0,0.00027945,2]
[322173895,1712863863760,-621.0,0.00027945,2]
[322173896,1712863863769,-500.0,0.00027945,2]
[322173897,1712863863779,-649.6,0.00027945,2]
[322173898,1712863863788,-265.77117395,0.00027945,2]
[322173899,1712863863797,-855.37,0.00027945,2]
[322173900,1712863863806,-500.0,0.00027945,2]
[322173901,1712863863820,-649.39,0.00027945,2]
[322173902,1712863863829,-500.0,0.00027945,2]
[322173903,1712863863839,-832.74,0.00027945,2]
[322173904,1712863863848,-500.0,0.00027945,2]
[322173905,1712863863857,-500.0,0.00027945,2]
[322173906,1712863863866,-2180.86,0.00027945,2]
[322173907,1712863863876,-500.0,0.00027945,2]
[322173908,1712863863885,-1399.6,0.00027945,2]
[322173909,1712863863894,-500.0,0.00027945,2]
[322173910,1712863863903,-500.0,0.00027945,2]
[322173911,1712863863913,-500.0,0.00027945,2]
[322173912,1712863863922,-626.17,0.00027945,2]
[322173913,1712863863931,-500.0,0.00027945,2]
[322173914,1712863863940,-1778.24,0.00027945,2]
[322173915,1712863863950,-1158.17,0.00027945,2]
[322173916,1712863863959,-586.60971887,0.00027945,2]
[322173917,1712863863968,-500.0,0.00027945,2]
[322173918,1712863863978,-500.0,0.00027945,2]
[322173919,1712863863987,-194.16752508,0.00027945,2]
[322173920,1712863863996,-500.0,0.00027945,2]
[322173921,1712863864006,-500.0,0.00027945,2]
[322173922,1712863864015,-638.17,0.00027945,2]
[322173923,1712863864024,-500.0,0.00027945,2]
[322173924,1712863864033,-772.92,0.00027945,2]
[322173925,1712863864043,-500.0,0.00027945,2]
[322173926,1712863864052,-542.85,0.00027945,2]
[322173927,1712863864063,-500.0,0.00027945,2]
[322173928,1712863864072,-1858.63,0.00027945,2]
[322173929,1712863864081,-500.0,0.00027945,2]
[322173930,1712863864090,-500.0,0.00027945,2]
[322173931,1712863864100,-500.0,0.00027945,2]
[322173932,1712863864110,-500.0,0.00027945,2]
[322173933,1712863864121,-776.82,0.00027945,2]
[322173934,1712863864131,-500.0,0.00027945,2]
[322173935,1712863864140,-500.0,0.00027945,2]
[322173936,1712863864150,-500.0,0.00027945,2]
[322173937,1712863864159,-608.54167945,0.00027945,2]
[322173938,1712863864168,-524.59,0.00027945,2]
[322173939,1712863864177,-500.0,0.00027945,2]
[322173940,1712863864186,-500.0,0.00027945,2]
[322173941,1712863864195,-500.0,0.00027945,2]
[322173942,1712863864205,-539.06,0.00027945,2]
[322173943,1712863864216,-500.0,0.00027945,2]
[322173944,1712863864226,-1089.41,0.00027945,2]
[322173945,1712863864235,-500.0,0.00027945,2]
[322173946,1712863864245,-1111.79,0.00027945,2]
[322173947,1712863864255,-500.0,0.00027945,2]
[322173948,1712863864265,-500.0,0.00027945,2]
[322173949,1712863864274,-656.89,0.00027945,2]
[322173950,1712863864284,-156.140992,0.00027945,7]
[322173951,1712863864293,-500.0,0.00027945,2]
[322173952,1712863864303,-500.0,0.00027945,2]
[322173953,1712863864313,-156.140992,0.00027945,7]
[322173954,1712863864323,-854.73,0.00027945,2]
[322173955,1712863864332,-500.0,0.00027945,2]
[322173956,1712863864342,-500.0,0.00027945,2]
[322173957,1712863864351,-2876.44,0.00027945,2]
[322173958,1712863864360,-500.0,0.00027945,2]
[322173959,1712863864369,-590.9,0.00027945,2]
[322173960,1712863864378,-1802.49,0.00027945,2]
[322173961,1712863864388,-1195.47,0.00027945,2]
[322173962,1712863864397,-500.0,0.00027945,2]
[322173963,1712863864406,-543.86993004,0.00027945,2]
[322173964,1712863864416,-500.0,0.00027945,2]